Cogmind - Beta 16 @@@ ROGUE MODE // 2025.11.05 @ 17:51:35 Player: shapeshifter Result: Self-destructed Performance ------------- Evolutions (1) 500 Regions Visited (3) 600 Robots Destroyed (20) 100 Value Destroyed (321) 321 Prototype IDs (0) 0 Alien Tech Used (0) 0 Bonus (0) 0 TOTAL SCORE: 1521 Bonus ------- None Cogmind --------- Core Integrity 80/400 Matter 154/300 Energy 100/100 System Corruption 0% Temperature Cool (16) Movement Core (100) Ox1 Location -9/Materials Parts ------- > --- POWER (1) -------- (None) > --- PROPULSION (2) --- (None) > --- UTILITY (4) ------ Small Storage Unit > --- WEAPON (2) ------- (None) > --- INVENTORY (8) ---- Ion Engine Medium Storage Unit ECM Suite Hardened Light Armor Plating Hardened Light Armor Plating Hardened Light Armor Plating Light Assault Rifle Peak State ------------ > --- POWER ------------ (None) > --- PROPULSION ------- Hover Unit Hover Unit > --- UTILITY ---------- Small Storage Unit Structural Scanner > --- WEAPON ----------- Light Assault Rifle Autogun > --- INVENTORY -------- Ion Engine Medium Storage Unit Hardened Light Armor Plating Hardened Light Armor Plating Hardened Light Armor Plating Mini Grenade Launcher [Rating: 8] Favorites ----------- Power Light Ion Engine Engine Light Ion Engine Propulsion Hover Unit Hover Unit Hover Unit Utility Small Storage Unit Device Structural Scanner Storage Small Storage Unit Weapon Light Assault Rifle Energy Gun EM Pulse Gun Ballistic Gun Light Assault Rifle Launcher Mini Grenade Launcher Build | -11 -10 -10 -9 ------- Run | Yrd Mat Min Mat Slots Evolved 2 | . . . 2 Power . | . . . . Propulsion . | . . . . Utility 2 | . . . 2 Weapon . | . . . . Parts Attached 11 | 2 7 . 2 Power 1 | . 1 . . Engine 1 | . 1 . . Core . | . . . . Reactor . | . . . . Propulsion 2 | . 2 . . Treads . | . . . . Leg . | . . . . Wheel . | . . . . Hover 2 | . 2 . . Flight . | . . . . Utility 3 | 1 2 . . Device 2 | 1 1 . . Storage 1 | . 1 . . Processor . | . . . . Hackware . | . . . . Protection . | . . . . Artifact . | . . . . Weapon 5 | 1 2 . 2 Energy Gun 2 | . 2 . . Energy Cannon . | . . . . Ballistic Gun 2 | 1 . . 1 Ballistic Cannon . | . . . . Launcher 1 | . . . 1 Special Weapon . | . . . . Impact Weapon . | . . . . Slashing Weapon . | . . . . Piercing Weapon . | . . . . Special Melee Weapon . | . . . . Unidentified Prototypes . | . . . . Parts Lost 8 | . 2 . 6 Power 1 | . . . 1 Propulsion 2 | . . . 2 Utility 2 | . 1 . 1 Weapon 3 | . 1 . 2 Highest Loss Streak 5 | . 2 . 5 To Critical Strikes . | . . . . Average Backups 5 | 3 6 6 6 Power 1 | 1 1 1 1 Propulsion . | . . . . Utility 3 | . 3 4 4 Weapon 1 | 1 1 1 1 Tool/Special . | . . . . Unused Backups 6 | . . . 6 Power 1 | . . . 1 Propulsion . | . . . . Utility 5 | . . . 5 Weapon . | . . . . Tool/Special . | . . . . Average Slot Usage (%) 64 | . 48 85 61 Engine 8 | . 5 14 6 Hover 19 | . 11 28 18 Device 9 | . 3 14 11 Storage 12 | . 12 14 11 Ballistic Gun 13 | . 14 14 12 Peak Build Rating 8 | 2 7 7 8 Average Rating 5 | . 4 7 6 On Entrance 4 | . 2 7 7 Avg Prop Armor Cover (%) . | . . . . Naked Turns . | . . . . Heaviest Build 10 | 2 10 10 10 Greatest Support 14 | 3 12 12 14 Greatest Overweight (x) 3 | . 2 . 3 Average Overweight (x) . | . . . . Largest Inventory Capacity 8 | 5 8 8 8 Average Capacity 7 | 5 7 8 8 Most Carried 8 | 5 8 6 7 Average Carried 5 | 4 6 6 6 Final Capacity 8 | 5 8 8 8 Final Carried 7 | 5 6 6 7 Class Distribution -------------------- 100% | Mutant Dominant Class ---------------- Mutant | -10/Materials Mutant | -10/Mines Mutant | -9/Materials Resources | -11 -10 -10 -9 ----------- Run | Yrd Mat Min Mat Matter Collected 270 | 208 18 . 44 Remotely . | . . . . Salvage Created 556 | 18 107 . 431 Parts 41 | 3 8 . 30 Haulers Intercepted 2 | . . . 2 Recyclers Shooed 2 | . . . 2 Parts Field Recycled . | . . . . Retrieved Matter . | . . . . Parts Self-Destructed . | . . . . Prevented . | . . . . Parts Restored . | . . . . Kills | -11 -10 -10 -9 ------- Run | Yrd Mat Min Mat Combat Hostiles Destroyed 9 | . 2 . 7 Guns 3 | . 2 . 1 AOE 6 | . . . 6 Classes Destroyed 9 | 1 2 . 6 Worker 3 | . . . 3 Builder 1 | . . . 1 Tunneler 1 | 1 . . . Hauler 2 | . . . 2 Recycler 3 | . . . 3 Operator 1 | . 1 . . Swarmer 3 | . . . 3 Grunt 5 | . 2 . 3 Sentry 1 | . . . 1 Best Kill Streak 16 | 1 3 . 16 Combat Bots Only 7 | . 2 . 7 Max Kills in Single Turn 4 | 1 1 . 4 Gunslinging . | . . . . Exploded 2 | . . . 2 Melee . | . . . . Uniques/NPCs Destroyed . | . . . . Combat | -11 -10 -10 -9 -------- Run | Yrd Mat Min Mat Hostile Shots Fired 81 | . 23 . 58 Missed 27 | . 9 . 18 Hits 54 | . 14 . 40 Projectile 54 | . 14 . 40 Critical Strikes 3 | . . . 3 Damage Taken 899 | . 190 . 709 Core 374 | . 54 . 320 Absorbed by Shields . | . . . . Core Remaining (%) 89 | 100 . 78 . Volleys Fired 66 | 15 19 . 32 Largest 2 | 1 2 . 2 Hottest 60 | 20 60 . 43 Shots Fired 76 | 15 25 . 36 Gun 69 | 15 25 . 29 Cannon . | . . . . Launcher 7 | . . . 7 Special . | . . . . Kinetic 63 | 15 19 . 29 Thermal . | . . . . Explosive 7 | . . . 7 Electromagnetic 6 | . 6 . . Robot Hit Streak 5 | 4 4 . 5 Robot Miss Streak 4 | 2 3 . 4 Penetration Max . | . . . . Secondary Targets . | . . . . Shots Hit Robots 43 | 9 14 . 20 Core Hits 33 | 1 8 . 24 Critical Kills . | . . . . Critical Parts Destroyed . | . . . . Critical Strikes . | . . . . Melee Attacks . | . . . . Impact . | . . . . Slashing . | . . . . Piercing . | . . . . Sneak Attacks . | . . . . Combat Hostiles . | . . . . Follow-up Attacks . | . . . . Damage Inflicted 1354 | 72 135 . 1147 Guns 330 | 72 135 . 123 Cannons . | . . . . Explosions 1023 | . . . 1023 Melee . | . . . . Ramming 1 | . . . 1 Kinetic 277 | 72 82 . 123 Thermal . | . . . . Explosive 1023 | . . . 1023 Electromagnetic 53 | . 53 . . Impact . | . . . . Slashing . | . . . . Piercing . | . . . . Highest Corruption . | . . . . Average Corruption . | . . . . Corruption Purged . | . . . . Corruption Blocked . | . . . . Overload Shots . | . . . . Overflow Damage 25 | . . . 25 Projectiles . | . . . . Explosions 25 | . . . 25 Melee . | . . . . Knockbacks . | . . . . Impact . | . . . . Kinetic . | . . . . Secondary . | . . . . Self-Inflicted Damage 205 | . . . 205 Shots 7 | . . . 7 Rammed 2 | . . . 2 Targets Rammed 2 | . . . 2 Kicked . | . . . . Crushed . | . . . . Highest Temperature 50 | . 50 . 20 Average Temperature 15 | . 21 . 5 Received Heat Transfer 330 | . 102 . 228 Siege Activations . | . . . . Martial Activations . | . . . . Shielding Activations . | . . . . Robots Disrupted . | . . . . Combat Hostiles . | . . . . Robots Corrupted . | . . . . Combat Hostiles . | . . . . Parts Fried . | . . . . Impact Corruptions . | . . . . Robots Melted . | . . . . Combat Hostiles . | . . . . Parts Melted . | . . . . Heat Transferred . | . . . . Parts Sabotaged . | . . . . Parts Stolen . | . . . . Parts Stripped . | . . . . Power Chain Reactions . | . . . . Alert | -11 -10 -10 -9 ------- Run | Yrd Mat Min Mat Maximum Alert Level 1 | . . . 1 Low Security (%) 99 | 100 100 100 96 Level 1 . | . . . 3 Level 2 . | . . . . Level 3 . | . . . . Level 4 . | . . . . Level 5 . | . . . . High Security . | . . . . Max Security . | . . . . Peak Influence 223 | 5 54 12 223 Initial 12 | . . 12 . Average 13 | . 20 1 23 Influence Increases 419 | 5 111 . 303 Destroy 0b10 Robot/C 180 | . 40 . 140 Destroy 0b10 Robot/NC 55 | 5 5 . 45 Destroy Leader 34 | . 10 . 24 Successful Hack 11 | . 11 . . Disable Machine 15 | . . . 15 Destroy Structure 34 | . . . 34 Partial Spotted 15 | . 15 . . Lose Combat Pursuer 75 | . 30 . 45 Influence Decreases 211 | 5 80 31 95 Entered New Map 19 | . . 19 . Time Decay 127 | 5 70 12 40 Lost Part 65 | . 10 . 55 Squads Dispatched 4 | . 2 . 2 Investigation 2 | . 1 . 1 Extermination . | . . . . Reinforcement 2 | . 1 . 1 Assault . | . . . . Garrison . | . . . . Intercept . | . . . . Searches Triggered . | . . . . Construction Impeded . | . . . . Haulers Reinforced . | . . . . Active Scanning Responses . | . . . . Cargo Convoy Interrupts . | . . . . Stealth | -11 -10 -10 -9 --------- Run | Yrd Mat Min Mat Distress Signals 2 | . . . 2 Communications Jammed . | . . . . Distress Signals . | . . . . Times Spotted 26 | . 8 . 18 Peak Tracking Total 11 | . 2 . 11 Tactical Retreats 4 | . 1 . 3 Traps | -11 -10 -10 -9 ------- Run | Yrd Mat Min Mat Traps Triggered 2 | . 1 . 1 Indirectly . | . . . . Trap Hack Attempts . | . . . . Triggered . | . . . . Disarmed . | . . . . Reprogrammed . | . . . . Reused . | . . . . Traps Extracted . | . . . . Installed . | . . . . Triggered . | . . . . Machines | -11 -10 -10 -9 ---------- Run | Yrd Mat Min Mat Machines Disabled 1 | . . . 1 Max in Single Turn 1 | . . . 1 Machines Repaired . | . . . . Machines Dismantled . | . . . . Machines Sabotaged . | . . . . Overloaded Fab Kills . | . . . . Hacking | -11 -10 -10 -9 --------- Run | Yrd Mat Min Mat Machines Accessed 7 | . 4 . 3 Terminals 6 | . 4 . 2 Fabricators . | . . . . Repair Stations . | . . . . Recycling Units . | . . . . Scanalyzers 1 | . . . 1 Garrison Access . | . . . . Total Hacks 16 | . 7 . 9 Successful 7 | . 3 . 4 Failed 9 | . 4 . 5 Catastrophic 4 | . 2 . 2 Database Lockouts . | . . . . Manual 3 | . 3 . . Terminals 13 | . 7 . 6 Fabricators . | . . . . Repair Stations . | . . . . Recycling Units . | . . . . Scanalyzers 3 | . . . 3 Garrison Access . | . . . . Terminal Hacks 5 | . 3 . 2 Branch Access Points 1 | . 1 . . Alert Level 1 | . . . 1 Locate Traps 1 | . 1 . . Hauler Manifests 1 | . . . 1 Zone Layout 1 | . 1 . . Fabricator Hacks . | . . . . Repair Station Hacks . | . . . . Recycling Unit Hacks . | . . . . Scanalyzer 2 | . . . 2 Retrieve Study 2 | . . . 2 Garrison Access Hacks . | . . . . Unauthorized Hacks . | . . . . Terminals . | . . . . Fabricators . | . . . . Repair Stations . | . . . . Recycling Units . | . . . . Scanalyzers . | . . . . Garrison Access . | . . . . Data Cores Recovered . | . . . . Used . | . . . . Hacking Detections 6 | . 3 . 3 Full Trace Events . | . . . . Feedback Events . | . . . . Feedback Blocked . | . . . . Robot Schematics Acquired . | . . . . Robots Built . | . . . . Authchips . | . . . . Time . | . . . . Total Robot Build Rating . | . . . . Part Schematics Acquired . | . . . . Parts Built . | . . . . Authchips . | . . . . Time . | . . . . Total Part Build Rating . | . . . . Part Studies Acquired 2 | . . . 2 Parts Repaired . | . . . . Time . | . . . . Parts Recycled . | . . . . Recycled Matter . | . . . . Retrieved Matter . | . . . . Retrieved Components . | . . . . Parts Scanalyzed . | . . . . Part Schematics Acquired . | . . . . Parts Damaged . | . . . . Bothacking | -11 -10 -10 -9 ------------ Run | Yrd Mat Min Mat Used RIF Installer . | . . . . Robots Hacked . | . . . . Non-combat . | . . . . Combat . | . . . . Robot Hacks Applied . | . . . . Relay Couplers Released . | . . . . Fabnet Peak Effective % . | . . . . Robots Rewired . | . . . . Allies Hacked . | . . . . Hacks Repelled . | . . . . Allies | -11 -10 -10 -9 -------- Run | Yrd Mat Min Mat Total Allies . | . . . . Largest Group . | . . . . Highest-Rated Group . | . . . . Highest-Rated Ally . | . . . . Total Orders . | . . . . Ally Attacks . | . . . . Total Damage . | . . . . Kills . | . . . . Allies Corrupted . | . . . . Allies Melted . | . . . . Intel | -11 -10 -10 -9 ------- Run | Yrd Mat Min Mat Active Infowar (turns) 439 | 8 65 190 176 Structural 387 | . 21 190 176 Seismic 52 | 8 44 . . Robot Analysis Total . | . . . . Derelict Logs Recovered 2 | . . 2 . Drone Launches . | . . . . Drone Recoveries . | . . . . Exploration | -11 -10 -10 -9 ------------- Run | Yrd Mat Min Mat Turns Passed 656 | 68 220 190 178 Spaces Moved 802 | 64 225 339 174 Core 150 | 64 83 . 3 Treads . | . . . . Legs . | . . . . Wheels . | . . . . Hover 652 | . 142 339 171 Flight . | . . . . Fastest Speed 50 | 50 50 56 56 Average Speed 60 | 50 70 56 60 Slowest Speed 200 | 50 150 56 200 Overloaded Moves . | . . . . Propulsion Burnouts . | . . . . Robots Hopped . | . . . . Potential Cave-ins . | . . . . Cave-ins Triggered . | . . . . Exploration Rate (%) 42 | 4 56 87 22 Regions Visited 3 Branch Regions 1 Pre-discovered Areas . | . . . . Known Exits Taken 1 | . 1 . . Unknown Exits Taken 2 | 1 . 1 . Scrap Searched . | . . . . Spaces Dug . | . . . . Terrain Destroyed 38 | . . . 38 Melee . | . . . . Projectile . | . . . . AOE 38 | . . . 38 Terrain Rammed . | . . . . Walls Destroyed . | . . . . Machines Disabled . | . . . . Actions | -11 -10 -10 -9 --------- Run | Yrd Mat Min Mat Total 905 | 86 266 338 215 Wait 8 | . 5 . 3 Move 799 | 63 224 338 174 Hop . | . . . . Pick Up 16 | 6 8 . 2 Fast Attach 1 | 1 . . . Attach 10 | 1 8 . 1 Detach 1 | . 1 . . Swap 1 | . . . 1 Drop 1 | . 1 . . Fire 66 | 15 19 . 32 Melee . | . . . . Ram 2 | . . . 2 Kick . | . . . . Crush . | . . . . Escape Stasis . | . . . . Rewire . | . . . . Trap . | . . . . Miscellaneous . | . . . . Route ------- -11/Scrapyard -10/Materials (discovered 2 exits: *Mat / *Min) -10/Mines -9/Materials History --------- Turn | Location | Event 5 | -11/Scrapyard | Discovered new exit (range 15) 69 | -11/Scrapyard | Entered Materials 254 | -10/Materials | Discovered new exit (range 16) 275 | -10/Materials | Discovered new exit (range 13) 283 | -10/Materials | Identified exit to Mines 289 | -10/Materials | Entered Mines 308 | -10/Mines | Build established: Mutant 399 | -10/Mines | Learned Materials emergency access door positions 425 | -10/Mines | Discovered new exit (range 5) 445 | -10/Mines | Learned Materials garrison access intel 479 | -10/Mines | Entered Materials 479 | -9/Materials | Evolved 2 slots: Utility x2 654 | -9/Materials | Core integrity fell below 50% 657 | -9/Materials | Self-destructed Last Messages --------------- 00649_ U-05 Engineer lays Concrete. 00649_ R-06 Scavenger destroyed. 00650_ U-05 Engineer lays Concrete. 00650_ K-01 Serf collects debris. 00651_ The unstable cave ceiling collapses. 00651_ U-05 Engineer lays Concrete. 00651_ Y-45 Defender destroyed. 00651_ Autogun destroyed. 00651_ Destroyed Autogun. 00651_ R-06 Scavenger destroyed. 00652_ K-01 Serf collects debris. 00653_ The unstable cave ceiling collapses. 00653_ U-05 Engineer lays Concrete. 00653_ Destroyed Wheel. 00653_ R-06 Scavenger destroyed. 00653_ K-01 Serf destroyed. 00655_ Structural Scanner destroyed. 00655_ Mni. Grenade Launcher destroyed. 00656_ Critical hit (Burn: +37). 00657_ The unstable cave ceiling collapses. Map ----- +----------------------------------------------------+ | # ##??????????????????????????????????????? | | #####+#####??????????????????????????????????????? | | #### #####??????????????????????????????????????? | | #### ???????????????????????????????????????????? | | #### ##?????????????????????????????????????????? | | #### ##?????????????????????????????????????????? | | #### ##?????????????????????????????????????????? | | ##### ##???????????????? ??????????????????????? | | ##### ##???????????????? ?????????????????????? | | ##### ## ?????????????# ! #????????????????????? | | ##### ## ?????????????## s##????????????????????? | | # ?????????????## ##????????????????????? | | # ?????????????## Y ##????????????????????? | | # # ##????### ##?????????+???+??????? | | #### ####### ##????### ## ???????????????????? | | #### ## ???????????????????? | | # ################# = # ???????????????????? | | # ############## # ??????????????????? | | # ##??????## [ ###?????+????????????? | | # ##??????## "" [[ ###?????????????????? | | + ##??????## " "=% [ #####?????????????????? | | # ########## S%=! ##?????????????????? | | # ########## =%= ###????+????????????? | | + / gYg [u =[ ###?????????????????? | | ######+############## [ [####?????????????????? | | ### ######### @ [! ###????????????????? | | ????? [?????????#### [ ##????????????????? | | ???? [ ????????#### = ##????????????????? | | ???? ?????????### g ###????????????????? | | ??# #????????## % ###????????????????? | | ??#########????????## * ! ##?????????????????? | | ??## ????????## %= ????????????????? | | ???????????????????## = ####????????????????? | | ???????????????????## # ????????????????? | | ???????????????????#####+##### ??????????????????? | | ???????????????????##### ##### ??????????????????? | | ?????????????????????????????????????????????????? | | ????????????????????????+????????????????????????? | | ?????????????????????????????????????????????????? | | ?????????????????????????????????????????????????? | | ?????????????????????????????????????????????????? | | ?????????????????????????????????????????????????? | | ?????????????????????????????????????????????????? | | ?????????????????????????????????????????????????? | | ?????????????????????????????????????????????????? | | ?????????????????????????????????????????????????? | | ?????????????????????????????????????????????????? | | ?????????????????????????????????????????????????? | | ?????????????????????????????????????????????????? | | ?????????????????????????????????????????????????? | +----------------------------------------------------+ Best States ------------- Heat Dissipation 28 Energy Generation 10 Energy Capacity 125 Matter Stores 273 Matter Capacity 300 Sight Range 16 Terrain Scan Density 10 Evasion (%) 53 Item Schematics ----------------- None Robot Schematics ------------------ None Fabricated ------------ Nothing Repaired ---------- Nothing Studied --------- Hover Unit | -9/Materials | Hacked Ion Engine | -9/Materials | Hacked Alien Tech Used ----------------- None Achievements -------------- None Challenges ------------ None Game ------ Seed ConcussiveCoilCalibrator Manual? 0 Play Time 00:09:40 Cumulative 472.2 hours Start 2025.11.05 @ 17:44:19 End 2025.11.05 @ 17:51:35 Sessions 1 Manual Loads 0 Difficulty Rogue Special Mode None Game No. 597 Rogue 597 Adventurer 0 Explorer 0 Win Type - Total 14 Types 6/0/2/2/1/0/2/1/0/0 Lore% 90 Gallery% 85 Achievement% 63 Wizard Run 0 Options --------- Layout 2 ASCII 0 Keyboard 0 Movement Mouse Keybinds 0 Fullscreen 1 Font 24/Smallcaps Map View 50x49 Zoom Use 0% Tactical HUD 1 Map Filters NONE Filters NONE Steam 1 RUN: 06912226-ae02-4c13-93e1-281526208521